fUSD/lending_fUSD_20240617
["ID","MTS","AMOUNT","RATE_DAILY","PERIOD"]
[329776669,1718663434942,-500.0,0.00021917,2]
[329776670,1718663434951,-500.0,0.00021917,2]
[329776671,1718663434960,-500.0,0.00021917,2]
[329776672,1718663434969,-500.0,0.00021917,2]
[329776673,1718663434979,-500.0,0.00021917,2]
[329776674,1718663434989,-1074.17,0.00021917,2]
[329776675,1718663434999,-500.0,0.00021917,2]
[329776676,1718663435008,-500.0,0.00021917,2]
[329776677,1718663435018,-500.0,0.00021917,2]
[329776678,1718663435027,-500.0,0.00021917,2]
[329776679,1718663435036,-500.0,0.00021917,2]
[329776680,1718663435045,-500.0,0.00021917,2]
[329776681,1718663435055,-500.0,0.00021917,2]
[329776682,1718663435064,-500.0,0.00021917,2]
[329776683,1718663435073,-500.0,0.00021917,2]
[329776684,1718663435082,-295.36647638,0.00021917,2]
[329776685,1718663435092,-500.0,0.00021917,2]
[329776686,1718663435101,-744.78,0.00021917,2]
[329776687,1718663435110,-500.0,0.00021917,2]
[329776688,1718663435119,-615.4,0.00021917,2]
[329776689,1718663435128,-500.0,0.00021917,2]
[329776690,1718663435138,-564.49,0.00021917,2]
[329776691,1718663435147,-500.0,0.00021917,2]
[329776692,1718663435159,-1470.72,0.00021917,2]
[329776693,1718663435168,-149.61437589,0.00021917,2]
[329776694,1718663435806,-350.38562411,0.00021917,2]
[329776695,1718663435817,-57.12924908,0.00021917,2]
[329776696,1718663435828,-291.44373864,0.00021917,2]
[329776697,1718663437538,299.56,0.00021589,30]
[329776705,1718663440696,-6044.38402084,0.00021523,2]
[329776706,1718663440708,-1126.20759865,0.00021523,2]
[329776707,1718663440719,-10086.79046966,0.00021523,2]
[329776708,1718663440731,-20860.61791085,0.00021523,2]
[329776709,1718663440740,-442.0,0.00021523,2]
[329776710,1718663440751,-7500.0,0.00021817,2]
[329776711,1718663440765,-683.0,0.00021917,2]
[329776712,1718663440774,-151.42701228,0.00021917,2]
[329776713,1718663440784,-500.0,0.00021917,2]
[329776714,1718663440795,-500.0,0.00021917,2]
[329776715,1718663440805,-620.24,0.00021917,2]
[329776716,1718663440815,-500.0,0.00021917,2]
[329776717,1718663440825,-500.0,0.00021917,2]
[329776718,1718663440838,-500.0,0.00021917,2]
[329776719,1718663440847,-633.41,0.00021917,2]
[329776720,1718663440857,-500.0,0.00021917,2]
[329776721,1718663440867,-500.0,0.00021917,2]
[329776722,1718663440876,-500.0,0.00021917,2]
[329776723,1718663440885,-770.42,0.00021917,2]
[329776724,1718663440894,-500.0,0.00021917,2]
[329776725,1718663440903,-1115.04,0.00021917,2]
[329776726,1718663440915,-163.14947838,0.00021917,2]
[329776727,1718663440924,-500.0,0.00021917,2]
[329776728,1718663440934,-500.0,0.00021917,2]
[329776729,1718663440944,-273.22938803,0.00021917,2]
[329776730,1718663440954,-1703.22,0.00021917,2]
[329776732,1718663440963,-500.0,0.00021917,2]
[329776734,1718663440972,-553.82,0.00021917,2]
[329776736,1718663440982,-500.0,0.00021917,2]
[329776738,1718663440991,-608.71,0.00021917,2]
[329776740,1718663441000,-571.59,0.00021917,2]
[329776742,1718663441010,-500.0,0.00021917,2]
[329776744,1718663441019,-500.0,0.00021917,2]
[329776746,1718663441028,-486.39039287,0.00021917,2]
[329776748,1718663441037,-1498.24,0.00021917,2]
[329776750,1718663441047,-500.0,0.00021917,2]
[329776752,1718663441056,-500.0,0.00021917,2]
[329776754,1718663441065,-873.79,0.00021917,2]
[329776756,1718663441075,-237.63703632,0.00021917,2]
[329776758,1718663441084,-500.0,0.00021917,2]
[329776760,1718663441094,-721.87,0.00021917,2]
[329776762,1718663441103,-500.0,0.00021917,2]
[329776764,1718663441112,-450.89239031,0.00021917,2]
[329776766,1718663441121,-575.77559566,0.00021917,2]
[329776768,1718663441130,-561.49884029,0.00021917,2]
[329776770,1718663441139,-500.0,0.00021917,2]
[329776772,1718663441148,-500.0,0.00021917,2]
[329776774,1718663441158,-500.0,0.00021917,2]
[329776776,1718663441167,-702.48,0.00021917,2]
[329776778,1718663441176,-500.0,0.00021917,2]
[329776780,1718663441185,-500.0,0.00021917,2]
[329776782,1718663441195,-500.0,0.00021917,2]
[329776784,1718663441205,-500.0,0.00021917,2]
[329776786,1718663441215,-500.0,0.00021917,2]
[329776788,1718663441225,-500.0,0.00021917,2]
[329776790,1718663441234,-905.27,0.00021917,2]
[329776792,1718663441244,-500.0,0.00021917,2]
[329776794,1718663441254,-500.0,0.00021917,2]
[329776796,1718663441263,-500.0,0.00021917,2]
[329776798,1718663441273,-500.0,0.00021917,2]
[329776800,1718663441283,-573.46,0.00021917,2]
[329776802,1718663441293,-500.0,0.00021917,2]
[329776804,1718663441302,-500.0,0.00021917,2]
[329776806,1718663441312,-576.66,0.00021917,2]
[329776808,1718663441321,-535.09,0.00021917,2]
[329776810,1718663441331,-500.0,0.00021917,2]
[329776812,1718663441340,-500.0,0.00021917,2]
[329776814,1718663441349,-500.0,0.00021917,2]
[329776816,1718663441359,-1302.97,0.00021917,2]
[329776818,1718663441368,-500.0,0.00021917,2]
[329776820,1718663441377,-500.0,0.00021917,2]
[329776822,1718663441386,-186.67493582,0.00021917,2]
[329776824,1718663441395,-669.35,0.00021917,2]
[329776826,1718663441404,-500.0,0.00021917,2]
[329776828,1718663441415,-741.39,0.00021917,2]
[329776830,1718663441425,-544.19,0.00021917,2]
[329776832,1718663441434,-500.0,0.00021917,2]
[329776834,1718663441444,-561.61678602,0.00021917,2]
[329776836,1718663441453,-485.82530848,0.00021917,2]
[329776838,1718663441463,-500.0,0.00021917,2]
[329776840,1718663441472,-1993.74,0.00021917,2]
[329776842,1718663441482,-500.0,0.00021917,2]
[329776844,1718663441492,-1231.84,0.00021917,2]
[329776846,1718663441502,-500.0,0.00021917,2]
[329776848,1718663441511,-500.0,0.00021917,2]
[329776850,1718663441522,-500.0,0.00021917,2]
[329776852,1718663441531,-500.0,0.00021917,2]
[329776854,1718663441541,-500.0,0.00021917,2]
[329776857,1718663441551,-918.53,0.00021917,2]
[329776859,1718663441561,-549.08,0.00021917,2]
[329776861,1718663441571,-1060.9,0.00021917,2]
[329776863,1718663441581,-746.3,0.00021917,2]
[329776865,1718663441591,-500.0,0.00021917,2]
[329776867,1718663441601,-500.0,0.00021917,2]
[329776869,1718663441611,-661.54,0.00021917,2]
[329776871,1718663441621,-500.0,0.00021917,2]
[329776873,1718663441630,-500.0,0.00021917,2]
[329776875,1718663441639,-500.0,0.00021917,2]
[329776878,1718663441648,-520.41,0.00021917,2]
[329776880,1718663441658,-500.0,0.00021917,2]
[329776883,1718663441668,-500.0,0.00021917,2]
[329776885,1718663441677,-500.0,0.00021917,2]
[329776887,1718663441686,-500.0,0.00021917,2]
[329776888,1718663441695,-760.0,0.00021917,2]
[329776890,1718663441705,-500.0,0.00021917,2]
[329776892,1718663441714,-500.0,0.00021917,2]
[329776894,1718663441725,-1135.84,0.00021917,2]
[329776896,1718663441734,-500.0,0.00021917,2]
[329776898,1718663441743,-500.0,0.00021917,2]
[329776900,1718663441757,-500.0,0.00021917,2]
[329776902,1718663441766,-500.0,0.00021917,2]
[329776904,1718663441776,-500.0,0.00021917,2]
[329776906,1718663441785,-663.53,0.00021917,2]
[329776908,1718663441797,-500.0,0.00021917,2]
[329776910,1718663441806,-1310.77,0.00021917,2]
[329776912,1718663441816,-526.77159646,0.00021917,2]
[329776914,1718663441827,-500.0,0.00021917,2]
[329776916,1718663441843,-1358.04,0.00021917,2]
[329776918,1718663441856,-628.96,0.00021917,2]
[329776920,1718663441867,-500.0,0.00021917,2]
[329776922,1718663441876,-500.0,0.00021917,2]
[329776924,1718663441886,-500.0,0.00021917,2]
[329776926,1718663441895,-666.7,0.00021917,2]
[329776928,1718663441905,-500.0,0.00021917,2]
[329776930,1718663441915,-500.0,0.00021917,2]
[329776932,1718663441925,-500.0,0.00021917,2]
[329776934,1718663441935,-500.0,0.00021917,2]
[329776936,1718663441944,-500.0,0.00021917,2]
[329776939,1718663441954,-1000.0,0.00021917,2]
[329776940,1718663441963,-540.92,0.00021917,2]
[329776943,1718663441973,-500.0,0.00021917,2]
[329776944,1718663441983,-500.0,0.00021917,2]
[329776946,1718663441992,-500.0,0.00021917,2]
[329776949,1718663442002,-540.61,0.00021917,2]
[329776950,1718663442011,-500.0,0.00021917,2]
[329776953,1718663442021,-500.0,0.00021917,2]
[329776969,1718663442237,-500.0,0.00021917,2]
[329776970,1718663442246,-500.0,0.00021917,2]
[329776971,1718663442255,-500.0,0.00021917,2]
[329776972,1718663442264,-1191.9,0.00021917,2]
[329776973,1718663442273,-656.37,0.00021917,2]
[329776974,1718663442282,-1024.76,0.00021917,2]
[329776975,1718663442291,-638.09,0.00021917,2]
[329776976,1718663442300,-500.0,0.00021917,2]
[329776977,1718663442309,-500.0,0.00021917,2]
[329776978,1718663442318,-652.83,0.00021917,2]
[329776979,1718663442328,-760.67,0.00021917,2]
[329776980,1718663442338,-500.0,0.00021917,2]
[329776981,1718663442347,-500.0,0.00021917,2]
[329776982,1718663442357,-500.0,0.00021917,2]
[329776983,1718663442367,-500.0,0.00021917,2]
[329776984,1718663442378,-647.23,0.00021917,2]
[329776985,1718663442388,-500.0,0.00021917,2]
[329776986,1718663442397,-500.0,0.00021917,2]
[329776987,1718663442406,-500.0,0.00021917,2]
[329776988,1718663442416,-533.16,0.00021917,2]
[329776989,1718663442426,-500.0,0.00021917,2]
[329776990,1718663442435,-744.17,0.00021917,2]
[329776991,1718663442445,-500.0,0.00021917,2]
[329776992,1718663442454,-959.15,0.00021917,2]
[329776993,1718663442463,-500.0,0.00021917,2]
[329776994,1718663442473,-500.0,0.00021917,2]
[329776995,1718663442483,-500.0,0.00021917,2]
[329776996,1718663442492,-500.0,0.00021917,2]
[329776997,1718663442502,-500.0,0.00021917,2]
[329776998,1718663442512,-500.0,0.00021917,2]
[329776999,1718663442521,-500.0,0.00021917,2]
[329777000,1718663442531,-500.0,0.00021917,2]
[329777001,1718663442541,-500.0,0.00021917,2]
[329777002,1718663442550,-503.15,0.00021917,2]
[329777003,1718663442560,-500.0,0.00021917,2]
[329777004,1718663442570,-317.78911024,0.00021917,2]
[329777005,1718663442579,-500.0,0.00021917,2]
[329777006,1718663442588,-1183.99,0.00021917,2]
[329777007,1718663442598,-500.0,0.00021917,2]
[329777008,1718663442608,-718.27,0.00021917,2]
[329777009,1718663442618,-500.0,0.00021917,2]
[329777010,1718663442630,-500.0,0.00021917,2]
[329777011,1718663442640,-500.0,0.00021917,2]
[329777012,1718663442649,-500.0,0.00021917,2]
[329777013,1718663442659,-500.0,0.00021917,2]
[329777014,1718663442668,-69.04421821,0.00021917,2]
[329777015,1718663442719,-674.01578179,0.00021917,2]
[329777016,1718663442732,-500.0,0.00021917,2]
[329777017,1718663442743,-617.9,0.00021917,2]
[329777018,1718663442753,-500.0,0.00021917,2]
[329777019,1718663442767,-534.63,0.00021917,2]
[329777020,1718663442777,-973.52,0.00021917,2]
[329777021,1718663442786,-667.11,0.00021917,2]
[329777022,1718663442796,-500.0,0.00021917,2]
[329777023,1718663442806,-500.0,0.00021917,2]
[329777024,1718663442816,-935.93,0.00021917,2]
[329777025,1718663442826,-500.0,0.00021917,2]
[329777026,1718663442838,-500.0,0.00021917,2]
[329777027,1718663442848,-500.0,0.00021917,2]
[329777028,1718663442857,-500.0,0.00021917,2]
[329777029,1718663442867,-712.23,0.00021917,2]
[329777030,1718663442876,-510.31,0.00021917,2]
[329777031,1718663442886,-596.72985051,0.00021917,2]
[329777032,1718663442895,-1077.29,0.00021917,2]
[329777033,1718663442905,-500.0,0.00021917,2]
[329777034,1718663442915,-500.0,0.00021917,2]
[329777035,1718663442925,-500.0,0.00021917,2]
[329777036,1718663442934,-500.0,0.00021917,2]
[329777037,1718663442944,-1184.56,0.00021917,2]
[329777038,1718663442953,-1215.59,0.00021917,2]
[329777039,1718663442962,-531.28,0.00021917,2]
[329777040,1718663442972,-500.0,0.00021917,2]
[329777041,1718663442981,-500.0,0.00021917,2]
[329777042,1718663442991,-500.0,0.00021917,2]
[329777044,1718663443001,-500.0,0.00021917,2]
[329777046,1718663443011,-726.43,0.00021917,2]
[329777048,1718663443020,-490.62784669,0.00021917,2]
[329777054,1718663443067,-38.26215331,0.00021917,2]
[329777056,1718663443077,-716.74,0.00021917,2]
[329777058,1718663443086,-500.0,0.00021917,2]
[329777060,1718663443095,-1033.15,0.00021917,2]
[329777062,1718663443104,-500.0,0.00021917,2]
[329777064,1718663443114,-500.0,0.00021917,2]
[329777066,1718663443123,-500.0,0.00021917,2]
[329777068,1718663443133,-500.0,0.00021917,2]
[329777070,1718663443142,-631.13857946,0.00021917,2]
[329777072,1718663443151,-500.0,0.00021917,2]
[329777074,1718663443161,-500.0,0.00021917,2]
[329777076,1718663443170,-1180.09,0.00021917,2]
[329777077,1718663443179,-706.36,0.00021917,2]
[329777080,1718663443188,-500.0,0.00021917,2]
[329777082,1718663443198,-500.0,0.00021917,2]
[329777084,1718663443208,-719.75,0.00021917,2]
[329777086,1718663443218,-895.17,0.00021917,2]
[329777088,1718663443227,-500.0,0.00021917,2]
[329777090,1718663443236,-500.0,0.00021917,2]
[329777092,1718663443246,-500.0,0.00021917,2]
[329777094,1718663443257,-1050.8,0.00021917,2]
[329777096,1718663443267,-500.0,0.00021917,2]
[329777098,1718663443276,-500.0,0.00021917,2]
[329777100,1718663443286,-500.0,0.00021917,2]
[329777102,1718663443296,-500.0,0.00021917,2]
[329777104,1718663443306,-500.0,0.00021917,2]
[329777106,1718663443315,-500.0,0.00021917,2]
[329777108,1718663443325,-500.0,0.00021917,2]
[329777110,1718663443335,-595.24,0.00021917,2]
[329777111,1718663443345,-500.0,0.00021917,2]
[329777112,1718663443356,-500.0,0.00021917,2]
[329777113,1718663443366,-500.0,0.00021917,2]
[329777114,1718663443376,-500.0,0.00021917,2]
[329777115,1718663443385,-500.0,0.00021917,2]
[329777116,1718663443395,-500.0,0.00021917,2]
[329777117,1718663443405,-931.69,0.00021917,2]
[329777118,1718663443416,-1406.35,0.00021917,2]
[329777119,1718663443425,-500.0,0.00021917,2]
[329777120,1718663443434,-500.0,0.00021917,2]
[329777121,1718663443444,-500.0,0.00021917,2]
[329777122,1718663443454,-500.0,0.00021917,2]
[329777123,1718663443464,-500.0,0.00021917,2]
[329777124,1718663443474,-500.0,0.00021917,2]
[329777125,1718663443484,-705.02,0.00021917,2]
[329777126,1718663443494,-500.0,0.00021917,2]
[329777127,1718663443503,-500.0,0.00021917,2]
[329777128,1718663443512,-500.0,0.00021917,2]
[329777129,1718663443522,-500.0,0.00021917,2]
[329777130,1718663443533,-911.86,0.00021917,2]
[329777131,1718663443544,-500.0,0.00021917,2]
[329777132,1718663443554,-500.0,0.00021917,2]
[329777133,1718663443563,-500.0,0.00021917,2]
[329777134,1718663443572,-1145.22,0.00021917,2]
[329777135,1718663443582,-500.0,0.00021917,2]
[329777136,1718663443592,-746.77,0.00021917,2]
[329777137,1718663443602,-500.0,0.00021917,2]
[329777138,1718663443612,-500.0,0.00021917,2]
[329777139,1718663443621,-415.49,0.00021917,2]
[329777140,1718663443631,-500.0,0.00021917,2]
[329777141,1718663443640,-500.0,0.00021917,2]
[329777142,1718663443650,-253.75460498,0.00021917,2]
[329777143,1718663443662,-500.0,0.00021917,2]
[329777144,1718663443671,-810.48,0.00021917,2]
[329777145,1718663443680,-500.0,0.00021917,2]
[329777146,1718663443690,-367.5,0.00021917,2]
[329777147,1718663443700,-1458.44,0.00021917,2]
[329777148,1718663443709,-832.07,0.00021917,2]
[329777149,1718663443719,-799.8,0.00021917,2]
[329777150,1718663443728,-500.0,0.00021917,2]
[329777151,1718663443738,-544.62,0.00021917,2]
[329777152,1718663443748,-500.0,0.00021917,2]
[329777153,1718663443762,-268.41,0.00021917,2]
[329777156,1718663443771,-15289.63,0.00021917,2]
[329777159,1718663443781,-1474.79,0.00021917,2]
[329777161,1718663443790,-500.0,0.00021917,2]
[329777162,1718663443800,-525.33,0.00021917,2]
[329777163,1718663443810,-722.8,0.00021917,2]
[329777164,1718663443819,-500.0,0.00021917,2]
[329777165,1718663443829,-500.0,0.00021917,2]
[329777166,1718663443842,-5237.94,0.00021917,2]
[329777167,1718663443852,-500.0,0.00021917,2]
[329777168,1718663443862,-2627.23,0.00021917,2]
[329777169,1718663443871,-500.0,0.00021917,2]
[329777170,1718663443880,-500.0,0.00021917,2]
[329777171,1718663443890,-928.7,0.00021917,2]
[329777172,1718663443900,-500.0,0.00021917,2]
[329777173,1718663443911,-650.97,0.00021917,2]
[329777174,1718663443920,-566.32,0.00021917,2]
[329777175,1718663443930,-2275.67,0.00021917,2]
[329777176,1718663443940,-500.0,0.00021917,2]
[329777177,1718663443950,-1122.39,0.00021917,2]
[329777178,1718663443959,-500.0,0.00021917,2]
[329777179,1718663443969,-2684.22,0.00021917,2]
[329777180,1718663443979,-727.99,0.00021917,2]
[329777181,1718663443988,-4092.17,0.00021917,2]
[329777182,1718663443997,-500.0,0.00021917,2]
[329777183,1718663444007,-2224.07,0.00021917,2]
[329777184,1718663444016,-500.0,0.00021917,2]
[329777185,1718663444026,-500.0,0.00021917,2]
[329777186,1718663444038,-500.0,0.00021917,2]
[329777187,1718663444047,-5369.73,0.00021917,2]
[329777188,1718663444057,-4340.72,0.00021917,2]
[329777189,1718663444066,-1344.4,0.00021917,2]
[329777190,1718663444076,-500.0,0.00021917,2]
[329777191,1718663444085,-582.71,0.00021917,2]
[329777192,1718663444094,-1347.53,0.00021917,2]
[329777193,1718663444104,-7604.92,0.00021917,2]
[329777194,1718663444114,-500.0,0.00021917,2]
[329777195,1718663444123,-878.98,0.00021917,2]
[329777196,1718663444133,-920.51,0.00021917,2]
[329777197,1718663444144,-500.0,0.00021917,2]
[329777198,1718663444153,-500.0,0.00021917,2]
[329777199,1718663444164,-2092.9,0.00021917,2]
[329777200,1718663444174,-662.48,0.00021917,2]
[329777201,1718663444184,-5704.45,0.00021917,2]
[329777202,1718663444193,-769.59,0.00021917,2]
[329777203,1718663444203,-1677.66,0.00021917,2]
[329777204,1718663444212,-6422.1,0.00021917,2]
[329777205,1718663444222,-500.0,0.00021917,2]
[329777206,1718663444233,-1509.76,0.00021917,2]
[329777207,1718663444243,-500.0,0.00021917,2]
[329777208,1718663444252,-1551.9,0.00021917,2]
[329777209,1718663444262,-611.48937291,0.00021917,2]
[329777210,1718663444271,-1575.92,0.00021917,2]
[329777211,1718663444281,-500.0,0.00021917,2]
[329777212,1718663444291,-500.0,0.00021917,2]
[329777213,1718663444300,-758.49,0.00021917,2]
[329777214,1718663444310,-1527.79,0.00021917,2]
[329777215,1718663444320,-500.0,0.00021917,2]
[329777216,1718663444330,-500.0,0.00021917,2]
[329777217,1718663444340,-1032.51,0.00021917,2]
[329777218,1718663444350,-11994.11,0.00021917,2]
[329777219,1718663444359,-500.0,0.00021917,2]
[329777220,1718663444368,-500.0,0.00021917,2]
[329777221,1718663444378,-500.0,0.00021917,2]
[329777222,1718663444388,-7921.22,0.00021917,2]
[329777223,1718663444398,-4336.02,0.00021917,2]
[329777224,1718663444409,-500.0,0.00021917,2]
[329777225,1718663444419,-761.06,0.00021917,2]
[329777226,1718663444427,-500.0,0.00021917,2]
[329777227,1718663444438,-1461.11,0.00021917,2]
[329777228,1718663444448,-5572.74,0.00021917,2]
[329777229,1718663444457,-682.1,0.00021917,2]
[329777230,1718663444466,-9271.9,0.00021917,2]
[329777231,1718663444476,-500.0,0.00021917,2]
[329777232,1718663444485,-682.2,0.00021917,2]
[329777233,1718663444495,-500.0,0.00021917,2]
[329777234,1718663444505,-1254.45,0.00021917,2]
[329777235,1718663444515,-500.0,0.00021917,2]
[329777237,1718663444524,-784.58,0.00021917,2]
[329777239,1718663444534,-2438.34,0.00021917,2]
[329777240,1718663444544,-500.0,0.00021917,2]
[329777241,1718663444554,-500.0,0.00021917,2]
[329777242,1718663444563,-1749.18,0.00021917,2]
[329777243,1718663444573,-500.0,0.00021917,2]
[329777244,1718663444583,-500.0,0.00021917,2]
[329777245,1718663444593,-1080.82,0.00021917,2]
[329777246,1718663444602,-500.0,0.00021917,2]
[329777247,1718663444612,-2399.59,0.00021917,2]
[329777248,1718663444622,-516.96,0.00021917,2]
[329777249,1718663444632,-1425.14,0.00021917,2]
[329777250,1718663444641,-500.0,0.00021917,2]
[329777251,1718663444651,-500.0,0.00021917,2]
[329777252,1718663444661,-548.0,0.00021917,2]
[329777253,1718663444669,-500.0,0.00021917,2]
[329777254,1718663444678,-1393.55,0.00021917,2]
[329777255,1718663444687,-4310.78,0.00021917,2]
[329777256,1718663444696,-705.7,0.00021917,2]
[329777257,1718663444706,-3155.7,0.00021917,2]
[329777258,1718663444715,-500.0,0.00021917,2]
[329777259,1718663444724,-4602.5,0.00021917,2]
[329777260,1718663444734,-1491.81,0.00021917,2]
[329777261,1718663444743,-500.0,0.00021917,2]
[329777262,1718663444755,-2040.53,0.00021917,2]
[329777263,1718663444767,-734.25,0.00021917,2]
[329777264,1718663444777,-500.0,0.00021917,2]
[329777265,1718663444786,-630.0,0.00021917,2]
[329777266,1718663444797,-500.0,0.00021917,2]
[329777268,1718663444807,-1564.77,0.00021917,2]
[329777270,1718663444816,-500.0,0.00021917,2]
[329777272,1718663444825,-500.0,0.00021917,2]
[329777274,1718663444836,-500.0,0.00021917,2]
[329777276,1718663444846,-1959.99,0.00021917,2]
[329777278,1718663444856,-500.0,0.00021917,2]
[329777280,1718663444866,-1517.51,0.00021917,2]
[329777282,1718663444875,-772.36,0.00021917,2]
[329777284,1718663444885,-2883.23,0.00021917,2]
[329777285,1718663444895,-1311.31,0.00021917,2]
[329777286,1718663444904,-1995.11,0.00021917,2]
[329777287,1718663444916,-15945.09,0.00021917,2]
[329777288,1718663444926,-109.85145902,0.00021917,2]
[329777289,1718663445050,-470.23854098,0.00021917,2]
[329777290,1718663445060,-500.0,0.00021917,2]
[329777291,1718663445069,-500.0,0.00021917,2]
[329777292,1718663445079,-500.0,0.00021917,2]
[329777293,1718663445088,-743.06,0.00021917,2]
[329777294,1718663445098,-500.0,0.00021917,2]
[329777295,1718663445107,-726.82,0.00021917,2]
[329777296,1718663445116,-746.94,0.00021917,2]
[329777297,1718663445125,-1472.52,0.00021917,2]
[329777298,1718663445135,-37745.0,0.00021917,2]
[329777299,1718663445145,-500.0,0.00021917,2]
[329777300,1718663445154,-1190.97,0.00021917,2]
[329777301,1718663445164,-1878.1,0.00021917,2]
[329777302,1718663445174,-3894.76,0.00021917,2]
[329777303,1718663445183,-1337.72,0.00021917,2]
[329777304,1718663445193,-500.0,0.00021917,2]
[329777305,1718663445203,-4008.26,0.00021917,2]
[329777306,1718663445212,-500.0,0.00021917,2]
[329777307,1718663445221,-500.0,0.00021917,2]
[329777308,1718663445230,-500.0,0.00021917,2]
[329777309,1718663445239,-619.47,0.00021917,2]
[329777310,1718663445249,-1391.32,0.00021917,2]
[329777311,1718663445258,-565.71,0.00021917,2]
[329777312,1718663445268,-1873.62,0.00021917,2]
[329777313,1718663445278,-1512.45,0.00021917,2]
[329777314,1718663445287,-1669.07063758,0.00021917,2]
[329777315,1718663445300,-2943.03595209,0.00021917,2]
[329777316,1718663445311,-15018.51341033,0.00021917,2]
[329777317,1718663445320,-2302.73658965,0.00021917,2]
[329777318,1718663445332,-3013.69341035,0.00021917,2]
[329777319,1718663445341,-681.31,0.00021917,2]
[329777320,1718663445350,-500.0,0.00021917,2]
[329777321,1718663445361,-500.0,0.00021917,2]
[329777322,1718663445371,-3228.04,0.00021917,2]
[329777323,1718663445381,-911.82,0.00021917,2]
[329777324,1718663445391,-594.75,0.00021917,2]
[329777325,1718663445400,-500.0,0.00021917,2]
[329777326,1718663445411,-10034.45,0.00021917,2]
[329777327,1718663445420,-1096.07,0.00021917,2]
[329777328,1718663445430,-11369.3,0.00021917,2]
[329777329,1718663445439,-3057.43,0.00021917,2]
[329777330,1718663445449,-500.0,0.00021917,2]
[329777331,1718663445458,-782.72,0.00021917,2]
[329777332,1718663445467,-814.98,0.00021917,2]
[329777333,1718663445477,-500.0,0.00021917,2]
[329777334,1718663445486,-1421.38,0.00021917,2]
[329777335,1718663445495,-524.33,0.00021917,2]
[329777336,1718663445505,-500.0,0.00021917,2]
[329777337,1718663445514,-1804.11,0.00021917,2]
[329777338,1718663445524,-639.70799101,0.00021917,2]
[329777339,1718663445533,-500.0,0.00021917,2]
[329777340,1718663445543,-2560.96,0.00021917,2]
[329777341,1718663445552,-3636.06,0.00021917,2]
[329777342,1718663445561,-4277.08,0.00021917,2]
[329777343,1718663445571,-1276.26,0.00021917,2]
[329777344,1718663445580,-500.0,0.00021917,2]
[329777345,1718663445589,-500.0,0.00021917,2]
[329777346,1718663445599,-683.06,0.00021917,2]
[329777347,1718663445608,-1365.28,0.00021917,2]
[329777348,1718663445617,-607.11,0.00021917,2]
[329777349,1718663445627,-518.06,0.00021917,2]
[329777350,1718663445637,-500.0,0.00021917,2]
[329777351,1718663445646,-5745.28,0.00021917,2]
[329777352,1718663445655,-12845.48,0.00021917,2]
[329777353,1718663445667,-500.0,0.00021917,2]
[329777354,1718663445677,-2314.2,0.00021917,2]
[329777355,1718663445686,-500.0,0.00021917,2]